[Event "*** Titled Tuesday Blitz"]
[Site "Chess.com"]
[Date "2021.02.16"]
[Round "8"]
[White "Faqade"]
[Black "Grandelicious"]
[Result "1/2-1/2"]
[WhiteElo "2693"]
[BlackElo "2873"]
[TimeControl "180+1"]
[EndTime "11:30:12 PST"]
[Termination "Game drawn - insufficient material"]

1. e4 {[%clk 0:03:00.9]} 1... c6 {[%clk 0:03:00.1]} 2. d4 {[%clk 0:02:59]} 2...
d5 {[%clk 0:03:00.5]} 3. Nd2 {[%clk 0:02:59.3]} 3... dxe4 {[%clk 0:03:00.5]} 4.
Nxe4 {[%clk 0:03:00.2]} 4... Nf6 {[%clk 0:03:01.4]} 5. Nxf6+ {[%clk 0:02:58]}
5... exf6 {[%clk 0:03:02.3]} 6. c3 {[%clk 0:02:58.3]} 6... Bd6 {[%clk
0:03:02.8]} 7. Bd3 {[%clk 0:02:58.9]} 7... O-O {[%clk 0:03:02.3]} 8. Qc2 {[%clk
0:02:59.2]} 8... h6 {[%clk 0:03:01.5]} 9. Ne2 {[%clk 0:02:55.6]} 9... Qc7 {[%clk
0:03:01.9]} 10. Ng3 {[%clk 0:02:52.6]} 10... Re8+ {[%clk 0:02:59.4]} 11. Be3
{[%clk 0:02:49.8]} 11... c5 {[%clk 0:02:47.8]} 12. O-O {[%clk 0:02:44.2]} 12...
cxd4 {[%clk 0:02:46.9]} 13. Bxd4 {[%clk 0:02:45.1]} 13... Nc6 {[%clk 0:02:47.2]}
14. Be3 {[%clk 0:02:40.6]} 14... Be6 {[%clk 0:02:42.1]} 15. Bh7+ {[%clk
0:02:32.1]} 15... Kh8 {[%clk 0:02:39.1]} 16. Bf5 {[%clk 0:02:33]} 16... Bxg3
{[%clk 0:02:26]} 17. hxg3 {[%clk 0:02:30.9]} 17... Bxf5 {[%clk 0:02:26.4]} 18.
Qxf5 {[%clk 0:02:31.4]} 18... Re5 {[%clk 0:02:17.8]} 19. Qf3 {[%clk 0:02:21.2]}
19... Qe7 {[%clk 0:02:17]} 20. Rad1 {[%clk 0:02:18.1]} 20... Re8 {[%clk
0:02:12.3]} 21. Rd2 {[%clk 0:02:13]} 21... Qe6 {[%clk 0:02:11.2]} 22. b3 {[%clk
0:02:08.4]} 22... Rf5 {[%clk 0:02:07.1]} 23. Qd1 {[%clk 0:01:58.1]} 23... Re5
{[%clk 0:01:54.8]} 24. Rd6 {[%clk 0:01:29.3]} 24... Qf5 {[%clk 0:01:53.6]} 25.
Rd7 {[%clk 0:01:20.2]} 25... R8e7 {[%clk 0:01:50.3]} 26. Rxe7 {[%clk 0:01:18.1]}
26... Rxe7 {[%clk 0:01:51.2]} 27. Qe2 {[%clk 0:00:57.1]} 27... g5 {[%clk
0:01:46.5]} 28. Rd1 {[%clk 0:00:55]} 28... Kg7 {[%clk 0:01:46.5]} 29. c4 {[%clk
0:00:51.6]} 29... Qe4 {[%clk 0:01:31.9]} 30. Qb2 {[%clk 0:00:48.3]} 30... a6
{[%clk 0:01:24]} 31. Rd6 {[%clk 0:00:42.1]} 31... Ne5 {[%clk 0:01:22.7]} 32. c5
{[%clk 0:00:31]} 32... Ng4 {[%clk 0:01:20]} 33. b4 {[%clk 0:00:09.8]} 33... Nxe3
{[%clk 0:01:12.3]} 34. Qxf6+ {[%clk 0:00:08.7]} 34... Kg8 {[%clk 0:01:08.6]} 35.
Rd8+ {[%clk 0:00:08.3]} 35... Re8 {[%clk 0:01:09.1]} 36. Rxe8+ {[%clk
0:00:08.2]} 36... Qxe8 {[%clk 0:01:10]} 37. fxe3 {[%clk 0:00:08.5]} 37... Qxe3+
{[%clk 0:01:10.9]} 38. Kh2 {[%clk 0:00:08.7]} 38... h5 {[%clk 0:01:01.3]} 39. c6
{[%clk 0:00:06.4]} 39... bxc6 {[%clk 0:00:58.8]} 40. Qxc6 {[%clk 0:00:07.3]}
40... h4 {[%clk 0:00:57.4]} 41. gxh4 {[%clk 0:00:07.4]} 41... Qf4+ {[%clk
0:00:57.4]} 42. Kg1 {[%clk 0:00:07.4]} 42... Qd4+ {[%clk 0:00:54.2]} 43. Kf1
{[%clk 0:00:06.8]} 43... Qa1+ {[%clk 0:00:53.7]} 44. Kf2 {[%clk 0:00:05.5]}
44... Qxa2+ {[%clk 0:00:54.6]} 45. Kf3 {[%clk 0:00:06]} 45... Qb3+ {[%clk
0:00:48.7]} 46. Kg4 {[%clk 0:00:05.9]} 46... gxh4 {[%clk 0:00:47.4]} 47. Qxa6
{[%clk 0:00:05.1]} 47... Qg3+ {[%clk 0:00:47.1]} 48. Kh5 {[%clk 0:00:05.2]}
48... Qxg2 {[%clk 0:00:30.5]} 49. Qc8+ {[%clk 0:00:05.4]} 49... Kg7 {[%clk
0:00:27.1]} 50. Qg4+ {[%clk 0:00:05.1]} 50... Qxg4+ {[%clk 0:00:25.4]} 51. Kxg4
{[%clk 0:00:06]} 51... Kf6 {[%clk 0:00:25.9]} 52. Kxh4 {[%clk 0:00:03.9]} 52...
Ke6 {[%clk 0:00:26.4]} 53. Kg5 {[%clk 0:00:04.1]} 53... Kd5 {[%clk 0:00:27]} 54.
Kf6 {[%clk 0:00:04.4]} 54... Kc6 {[%clk 0:00:27.5]} 55. Kxf7 {[%clk 0:00:05.3]}
55... Kb5 {[%clk 0:00:28.4]} 56. Ke6 {[%clk 0:00:05.2]} 56... Kxb4 {[%clk
0:00:29.3]} 1/2-1/2

[Event "*** Titled Tuesday Blitz"]
[Site "Chess.com"]
[Date "2021.02.16"]
[Round "8"]
[White "Buffy7"]
[Black "GM_LOADING"]
[Result "0-1"]
[WhiteElo "2634"]
[BlackElo "2510"]
[TimeControl "180+1"]
[EndTime "11:30:12 PST"]
[Termination "GM_LOADING won by resignation"]

1. c4 {[%clk 0:03:00.9]} 1... e6 {[%clk 0:02:57.5]} 2. Nf3 {[%clk 0:02:58.9]}
2... Nf6 {[%clk 0:02:57.7]} 3. g3 {[%clk 0:02:59.8]} 3... a6 {[%clk 0:02:57]} 4.
Bg2 {[%clk 0:03:00.7]} 4... b5 {[%clk 0:02:57.7]} 5. b3 {[%clk 0:02:56.6]} 5...
c5 {[%clk 0:02:53.2]} 6. O-O {[%clk 0:02:56.1]} 6... Bb7 {[%clk 0:02:52.1]} 7.
Bb2 {[%clk 0:02:49.9]} 7... Be7 {[%clk 0:02:49.2]} 8. Nc3 {[%clk 0:02:48.4]}
8... Qb6 {[%clk 0:02:47]} 9. Rb1 {[%clk 0:02:44]} 9... d6 {[%clk 0:02:45.9]} 10.
a3 {[%clk 0:02:38.2]} 10... Nc6 {[%clk 0:02:45.5]} 11. d3 {[%clk 0:02:34]} 11...
O-O {[%clk 0:02:43.6]} 12. e3 {[%clk 0:02:33.6]} 12... Rac8 {[%clk 0:02:40.1]}
13. Qe2 {[%clk 0:02:32.5]} 13... Rfd8 {[%clk 0:02:38.4]} 14. Rfc1 {[%clk
0:02:10]} 14... d5 {[%clk 0:02:35.5]} 15. cxd5 {[%clk 0:01:47.7]} 15... exd5
{[%clk 0:02:36.4]} 16. Nh4 {[%clk 0:01:48.1]} 16... d4 {[%clk 0:02:31]} 17. Ne4
{[%clk 0:01:26.4]} 17... Nxe4 {[%clk 0:02:29.7]} 18. Bxe4 {[%clk 0:01:27.3]}
18... Bxh4 {[%clk 0:02:29.6]} 19. gxh4 {[%clk 0:01:27.1]} 19... Re8 {[%clk
0:02:20.5]} 20. f4 {[%clk 0:01:00.2]} 20... dxe3 {[%clk 0:02:07.2]} 21. Qg2
{[%clk 0:00:59.9]} 21... g6 {[%clk 0:01:32.4]} 22. h5 {[%clk 0:00:59.6]} 22...
Rxe4 {[%clk 0:01:26.5]} 23. dxe4 {[%clk 0:00:59.4]} 23... Nd4 {[%clk 0:01:25.4]}
24. Bxd4 {[%clk 0:00:24.8]} 24... cxd4 {[%clk 0:01:26.3]} 25. Rxc8+ {[%clk
0:00:25.2]} 25... Bxc8 {[%clk 0:01:26.6]} 26. Qe2 {[%clk 0:00:21.1]} 26... Qf6
{[%clk 0:01:24.4]} 27. Rf1 {[%clk 0:00:17]} 27... Qh4 {[%clk 0:01:14.7]} 28. f5
{[%clk 0:00:13.8]} 28... gxf5 {[%clk 0:01:08.7]} 29. Qg2+ {[%clk 0:00:12.8]}
29... Kf8 {[%clk 0:00:18.4]} 30. exf5 {[%clk 0:00:12.9]} 30... Qf6 {[%clk
0:00:16.3]} 31. Qd5 {[%clk 0:00:12.5]} 31... e2 {[%clk 0:00:09.7]} 32. Re1
{[%clk 0:00:12.4]} 32... Qg5+ {[%clk 0:00:07]} 33. Kh1 {[%clk 0:00:12.8]} 33...
Qe7 {[%clk 0:00:02.7]} 34. f6 {[%clk 0:00:10.5]} 34... Qb7 {[%clk 0:00:02.3]}
35. Kg2 {[%clk 0:00:06.4]} 35... Qxd5+ {[%clk 0:00:02.2]} 36. Kf2 {[%clk
0:00:07.3]} 36... d3 {[%clk 0:00:02.9]} 37. Rb1 {[%clk 0:00:07]} 37... d2 {[%clk
0:00:03.8]} 38. Kxe2 {[%clk 0:00:07.2]} 38... Qf5 {[%clk 0:00:04.4]} 39. Rg1
{[%clk 0:00:04.6]} 39... Be6 {[%clk 0:00:05.3]} 40. Kxd2 {[%clk 0:00:05]} 40...
Qxf6 {[%clk 0:00:05.7]} 41. h6 {[%clk 0:00:05.5]} 41... Ke7 {[%clk 0:00:06.6]}
42. Re1 {[%clk 0:00:05.8]} 42... Qxh6+ {[%clk 0:00:07.2]} 43. Kc3 {[%clk
0:00:06.7]} 43... Qxh2 {[%clk 0:00:07.6]} 44. Re3 {[%clk 0:00:07.1]} 44... Qc7+
{[%clk 0:00:08.1]} 45. Kb4 {[%clk 0:00:07]} 45... a5+ {[%clk 0:00:08.8]} 46.
Kxb5 {[%clk 0:00:07.2]} 46... Qb7+ {[%clk 0:00:09.2]} 47. Kxa5 {[%clk
0:00:07.2]} 47... Qa7+ {[%clk 0:00:09.8]} 48. Kb5 {[%clk 0:00:07.1]} 48... Qxe3
{[%clk 0:00:10.7]} 0-1

[Event "*** Titled Tuesday Blitz"]
[Site "Chess.com"]
[Date "2021.02.16"]
[Round "8"]
[White "BvsN"]
[Black "EdmundPlayer"]
[Result "1-0"]
[WhiteElo "2356"]
[BlackElo "2182"]
[TimeControl "180+1"]
[EndTime "11:30:12 PST"]
[Termination "BvsN won by checkmate"]

1. c4 {[%clk 0:03:00.9]} 1... e5 {[%clk 0:02:59.7]} 2. Nc3 {[%clk 0:03:00.5]}
2... Nf6 {[%clk 0:02:59.4]} 3. Nf3 {[%clk 0:03:00.7]} 3... Nc6 {[%clk
0:02:58.6]} 4. e3 {[%clk 0:03:00.1]} 4... d5 {[%clk 0:02:57.8]} 5. cxd5 {[%clk
0:03:00]} 5... Nxd5 {[%clk 0:02:55.9]} 6. Bb5 {[%clk 0:02:59.9]} 6... Nxc3
{[%clk 0:02:42]} 7. bxc3 {[%clk 0:03:00.2]} 7... Bd6 {[%clk 0:02:20.9]} 8. d4
{[%clk 0:02:59.6]} 8... O-O {[%clk 0:01:59.1]} 9. Bxc6 {[%clk 0:02:45.2]} 9...
bxc6 {[%clk 0:02:00]} 10. dxe5 {[%clk 0:02:45.5]} 10... Bc5 {[%clk 0:01:52.9]}
11. Qxd8 {[%clk 0:02:37.4]} 11... Rxd8 {[%clk 0:01:53.8]} 12. O-O {[%clk
0:02:34.4]} 12... Ba6 {[%clk 0:01:51.5]} 13. Re1 {[%clk 0:02:33.3]} 13... Rab8
{[%clk 0:01:47]} 14. Nd4 {[%clk 0:02:27.9]} 14... Rb6 {[%clk 0:01:46]} 15. a4
{[%clk 0:02:15.3]} 15... Bc4 {[%clk 0:01:38.6]} 16. a5 {[%clk 0:02:00.7]} 16...
Ra6 {[%clk 0:01:38]} 17. Ba3 {[%clk 0:01:37.6]} 17... Bxd4 {[%clk 0:01:20]} 18.
exd4 {[%clk 0:01:23.9]} 18... Rxa5 {[%clk 0:01:20]} 19. Bc5 {[%clk 0:01:17.8]}
19... Rxa1 {[%clk 0:01:20.9]} 20. Rxa1 {[%clk 0:01:18]} 20... a6 {[%clk
0:01:19.7]} 21. f3 {[%clk 0:01:04.3]} 21... Rb8 {[%clk 0:01:19.3]} 22. Bb4
{[%clk 0:00:52.3]} 22... f6 {[%clk 0:01:17.2]} 23. f4 {[%clk 0:00:50]} 23... Kf7
{[%clk 0:01:16.4]} 24. Kf2 {[%clk 0:00:49.2]} 24... Ke6 {[%clk 0:01:13.8]} 25.
Ke3 {[%clk 0:00:44.3]} 25... g6 {[%clk 0:01:07.5]} 26. Ra5 {[%clk 0:00:35.3]}
26... Bb5 {[%clk 0:00:56.1]} 27. g4 {[%clk 0:00:33.2]} 27... h5 {[%clk
0:00:51.3]} 28. gxh5 {[%clk 0:00:24.1]} 28... gxh5 {[%clk 0:00:50.9]} 29. Ke4
{[%clk 0:00:17.1]} 29... f5+ {[%clk 0:00:50.3]} 30. Kf3 {[%clk 0:00:16.5]} 30...
Rg8 {[%clk 0:00:48]} 31. Ra2 {[%clk 0:00:10.8]} 31... Bc4 {[%clk 0:00:40.3]} 32.
Ra5 {[%clk 0:00:10.1]} 32... Bd5+ {[%clk 0:00:26]} 33. Ke3 {[%clk 0:00:09.7]}
33... Rg2 {[%clk 0:00:24]} 34. Rc5 {[%clk 0:00:07.9]} 34... Rxh2 {[%clk
0:00:16.6]} 35. c4 {[%clk 0:00:08.4]} 35... Be4 {[%clk 0:00:15.4]} 36. d5+
{[%clk 0:00:08.6]} 36... cxd5 {[%clk 0:00:15.6]} 37. Rxc7 {[%clk 0:00:04.7]}
37... Rh3+ {[%clk 0:00:12.6]} 38. Kf2 {[%clk 0:00:04.5]} 38... Rf3+ {[%clk
0:00:12.6]} 39. Ke2 {[%clk 0:00:04.4]} 39... dxc4 {[%clk 0:00:12.2]} 40. Re7+
{[%clk 0:00:04.1]} 40... Kd5 {[%clk 0:00:11.5]} 41. Rd7+ {[%clk 0:00:04.5]}
41... Kc6 {[%clk 0:00:11.3]} 42. Rd6+ {[%clk 0:00:04.5]} 42... Kc7 {[%clk
0:00:11.1]} 43. e6 {[%clk 0:00:04.5]} 43... Rg3 {[%clk 0:00:06.7]} 44. e7 {[%clk
0:00:04.3]} 44... Rg8 {[%clk 0:00:07.1]} 45. Rd8 {[%clk 0:00:03.6]} 45... Rxd8
{[%clk 0:00:07]} 46. Ba5+ {[%clk 0:00:04.1]} 46... Kc6 {[%clk 0:00:05.7]} 47.
exd8=Q {[%clk 0:00:05]} 47... Kb5 {[%clk 0:00:06.2]} 48. Qb6+ {[%clk 0:00:05.1]}
48... Ka4 {[%clk 0:00:06.6]} 49. Qb4# {[%clk 0:00:06]} 1-0

[Event "*** Titled Tuesday Blitz"]
[Site "Chess.com"]
[Date "2021.02.16"]
[Round "8"]
[White "sergiochess83"]
[Black "Hikaru"]
[Result "1/2-1/2"]
[WhiteElo "2849"]
[BlackElo "3184"]
[TimeControl "180+1"]
[EndTime "11:30:15 PST"]
[Termination "Game drawn by repetition"]

1. e4 {[%clk 0:03:00.8]} 1... e5 {[%clk 0:03:00]} 2. Nf3 {[%clk 0:02:59.5]} 2...
Nc6 {[%clk 0:03:00.9]} 3. Bb5 {[%clk 0:02:59.2]} 3... a6 {[%clk 0:03:00.1]} 4.
Ba4 {[%clk 0:02:59.1]} 4... g6 {[%clk 0:03:00.1]} 5. c3 {[%clk 0:02:55.8]} 5...
b5 {[%clk 0:02:57.6]} 6. Bc2 {[%clk 0:02:55.3]} 6... d6 {[%clk 0:02:57.3]} 7. d4
{[%clk 0:02:54.8]} 7... Bg7 {[%clk 0:02:57.3]} 8. dxe5 {[%clk 0:02:41.4]} 8...
Nxe5 {[%clk 0:02:52.7]} 9. Nxe5 {[%clk 0:02:41.2]} 9... Bxe5 {[%clk 0:02:53.4]}
10. Nd2 {[%clk 0:02:40.6]} 10... Ne7 {[%clk 0:02:52.4]} 11. O-O {[%clk
0:02:38.2]} 11... O-O {[%clk 0:02:51.7]} 12. f4 {[%clk 0:02:32.6]} 12... Bg7
{[%clk 0:02:51.4]} 13. f5 {[%clk 0:02:32.1]} 13... Nc6 {[%clk 0:02:48.8]} 14.
Nf3 {[%clk 0:02:31.4]} 14... Ne5 {[%clk 0:02:46.6]} 15. Bf4 {[%clk 0:02:24.5]}
15... Bb7 {[%clk 0:02:41]} 16. Nxe5 {[%clk 0:02:13.6]} 16... dxe5 {[%clk
0:02:34.5]} 17. Be3 {[%clk 0:02:13.5]} 17... Qxd1 {[%clk 0:02:23.1]} 18. Raxd1
{[%clk 0:02:12.6]} 18... Rfd8 {[%clk 0:02:23.8]} 19. g4 {[%clk 0:02:01.6]} 19...
Bf8 {[%clk 0:02:11]} 20. Kf2 {[%clk 0:01:58]} 20... f6 {[%clk 0:02:00.6]} 21.
Bb3+ {[%clk 0:01:29.8]} 21... Kg7 {[%clk 0:02:00.4]} 22. Kf3 {[%clk 0:01:30.4]}
22... Bd6 {[%clk 0:01:59]} 23. Bd5 {[%clk 0:01:25.4]} 23... Bxd5 {[%clk
0:01:58.2]} 24. Rxd5 {[%clk 0:01:25.4]} 24... Kf7 {[%clk 0:01:58.9]} 25. Rfd1
{[%clk 0:01:24.6]} 25... gxf5 {[%clk 0:01:58]} 26. gxf5 {[%clk 0:01:21.9]} 26...
Ke7 {[%clk 0:01:57.2]} 27. b3 {[%clk 0:01:11.5]} 27... Ke8 {[%clk 0:01:44.2]}
28. Kg4 {[%clk 0:00:53.9]} 28... Kf7 {[%clk 0:01:38.3]} 29. Bc5 {[%clk
0:00:47.9]} 29... Ke7 {[%clk 0:01:31.9]} 30. Bf2 {[%clk 0:00:36.6]} 30... h5+
{[%clk 0:01:19.8]} 31. Kf3 {[%clk 0:00:36.6]} 31... Ke8 {[%clk 0:01:14.8]} 32.
Bh4 {[%clk 0:00:33]} 32... Kf7 {[%clk 0:01:12.1]} 33. Bf2 {[%clk 0:00:33.1]}
33... Rab8 {[%clk 0:01:07.5]} 34. Ba7 {[%clk 0:00:28.7]} 34... Rb7 {[%clk
0:01:05.7]} 35. Bc5 {[%clk 0:00:22]} 35... Rc8 {[%clk 0:01:05.1]} 36. Bf2 {[%clk
0:00:18.2]} 36... a5 {[%clk 0:01:00.9]} 37. Rg1 {[%clk 0:00:17.3]} 37... a4
{[%clk 0:00:58.7]} 38. b4 {[%clk 0:00:16.2]} 38... Rbb8 {[%clk 0:00:55.8]} 39.
Rg6 {[%clk 0:00:13.6]} 39... Rd8 {[%clk 0:00:46.9]} 40. Rh6 {[%clk 0:00:08]}
40... Kg7 {[%clk 0:00:44.5]} 41. Rg6+ {[%clk 0:00:07.9]} 41... Kf7 {[%clk
0:00:44.7]} 42. Rh6 {[%clk 0:00:08.2]} 42... c6 {[%clk 0:00:28.8]} 43. Rd1
{[%clk 0:00:06.2]} 43... Be7 {[%clk 0:00:29]} 44. Rh7+ {[%clk 0:00:04.3]} 44...
Kf8 {[%clk 0:00:28.6]} 45. Rxd8+ {[%clk 0:00:03.1]} 45... Rxd8 {[%clk
0:00:27.3]} 46. Rh8+ {[%clk 0:00:01.2]} 46... Kf7 {[%clk 0:00:27.5]} 47. Rxd8
{[%clk 0:00:02.1]} 47... Bxd8 {[%clk 0:00:28.3]} 48. Bc5 {[%clk 0:00:01.4]}
48... Kg7 {[%clk 0:00:23.1]} 49. Kg3 {[%clk 0:00:02.3]} 49... Kh7 {[%clk
0:00:23.2]} 50. Kh4 {[%clk 0:00:02.5]} 50... Kh6 {[%clk 0:00:24.1]} 51. Be3+
{[%clk 0:00:02.3]} 51... Kg7 {[%clk 0:00:24.4]} 52. Kxh5 {[%clk 0:00:03.2]}
52... Be7 {[%clk 0:00:25.1]} 53. Bc5 {[%clk 0:00:03.2]} 53... Bxc5 {[%clk
0:00:23.3]} 54. bxc5 {[%clk 0:00:03]} 54... Kh7 {[%clk 0:00:24.2]} 55. a3 {[%clk
0:00:03.3]} 55... Kg7 {[%clk 0:00:24.3]} 56. Kg4 {[%clk 0:00:03.8]} 56... Kh7
{[%clk 0:00:24.8]} 57. Kf3 {[%clk 0:00:04.1]} 57... Kh6 {[%clk 0:00:25.7]} 58.
Kg4 {[%clk 0:00:04.9]} 58... Kh7 {[%clk 0:00:26.3]} 59. Kh4 {[%clk 0:00:05.7]}
59... Kh6 {[%clk 0:00:27.2]} 60. Kg4 {[%clk 0:00:06]} 60... Kh7 {[%clk
0:00:27.6]} 1/2-1/2

[Event "*** Titled Tuesday Blitz"]
[Site "Chess.com"]
[Date "2021.02.16"]
[Round "8"]
[White "KonstantinB_1983"]
[Black "MartinMatthiesen"]
[Result "1-0"]
[WhiteElo "2536"]
[BlackElo "2365"]
[TimeControl "180+1"]
[EndTime "11:30:15 PST"]
[Termination "KonstantinB_1983 won by resignation"]

1. Nf3 {[%clk 0:03:00.9]} 1... c5 {[%clk 0:02:55.1]} 2. c4 {[%clk 0:02:59.3]}
2... Nf6 {[%clk 0:02:53.9]} 3. Nc3 {[%clk 0:02:57.9]} 3... e6 {[%clk 0:02:52.6]}
4. e4 {[%clk 0:02:54.1]} 4... d6 {[%clk 0:02:51.1]} 5. d4 {[%clk 0:02:52.8]}
5... cxd4 {[%clk 0:02:50.8]} 6. Nxd4 {[%clk 0:02:53.2]} 6... b6 {[%clk
0:02:35.2]} 7. Be2 {[%clk 0:02:48.7]} 7... Bb7 {[%clk 0:02:34]} 8. f3 {[%clk
0:02:47.8]} 8... Be7 {[%clk 0:02:32.2]} 9. Be3 {[%clk 0:02:46.6]} 9... O-O
{[%clk 0:02:30.6]} 10. Qd2 {[%clk 0:02:45.3]} 10... a6 {[%clk 0:02:30.2]} 11.
Nc2 {[%clk 0:02:43.5]} 11... Nbd7 {[%clk 0:02:28.2]} 12. O-O {[%clk 0:02:39.2]}
12... Qc7 {[%clk 0:02:25.4]} 13. Rfd1 {[%clk 0:02:37.7]} 13... Rfe8 {[%clk
0:02:21]} 14. Rac1 {[%clk 0:02:37.9]} 14... Rac8 {[%clk 0:02:20.5]} 15. b3
{[%clk 0:02:33.5]} 15... Qb8 {[%clk 0:02:17.9]} 16. Kh1 {[%clk 0:02:29.4]} 16...
d5 {[%clk 0:01:53.7]} 17. cxd5 {[%clk 0:02:26.3]} 17... exd5 {[%clk 0:01:53.4]}
18. exd5 {[%clk 0:02:23.7]} 18... Bd6 {[%clk 0:01:52.8]} 19. Bg1 {[%clk
0:02:21.1]} 19... Bf4 {[%clk 0:01:52.1]} 20. Be3 {[%clk 0:02:11.4]} 20... Rxe3
{[%clk 0:01:45.4]} 21. Nxe3 {[%clk 0:02:09.9]} 21... Re8 {[%clk 0:01:44.2]} 22.
Qe1 {[%clk 0:02:03.2]} 22... Bxe3 {[%clk 0:01:36.7]} 23. Rb1 {[%clk 0:01:59.3]}
23... b5 {[%clk 0:01:34]} 24. Qh4 {[%clk 0:01:54.4]} 24... h6 {[%clk 0:01:30]}
25. a4 {[%clk 0:01:48.1]} 25... Bg5 {[%clk 0:01:25.2]} 26. Qd4 {[%clk
0:01:41.2]} 26... Bf4 {[%clk 0:01:15.9]} 27. axb5 {[%clk 0:01:37.4]} 27... Be5
{[%clk 0:01:04]} 28. Qc4 {[%clk 0:01:24.2]} 28... Bxc3 {[%clk 0:01:03]} 29. bxa6
{[%clk 0:01:22.7]} 29... Be5 {[%clk 0:00:28.4]} 30. axb7 {[%clk 0:01:20.5]}
30... Bxh2 {[%clk 0:00:28.1]} 31. Bf1 {[%clk 0:01:01.9]} 31... Nh5 {[%clk
0:00:19.2]} 32. g4 {[%clk 0:01:00.6]} 32... Ng3+ {[%clk 0:00:16.9]} 33. Kg2
{[%clk 0:00:59.7]} 33... Nxf1 {[%clk 0:00:16.3]} 34. Qxf1 {[%clk 0:00:57.7]}
34... Qg3+ {[%clk 0:00:15.7]} 35. Kh1 {[%clk 0:00:57.4]} 35... Qh4 {[%clk
0:00:15.9]} 36. Qg2 {[%clk 0:00:48.8]} 36... Bb8+ {[%clk 0:00:13.4]} 37. Kg1
{[%clk 0:00:48.3]} 37... Ba7+ {[%clk 0:00:12.6]} 38. Kf1 {[%clk 0:00:48.3]}
38... Nf6 {[%clk 0:00:12]} 39. d6 {[%clk 0:00:36.5]} 39... Qg5 {[%clk
0:00:11.9]} 40. Qd2 {[%clk 0:00:26.9]} 40... Qc5 {[%clk 0:00:09.2]} 41. Kg2
{[%clk 0:00:25]} 41... Rd8 {[%clk 0:00:06]} 42. Rbc1 {[%clk 0:00:24]} 42... Qb6
{[%clk 0:00:05.4]} 43. Rc8 {[%clk 0:00:22]} 43... Kh7 {[%clk 0:00:05.9]} 44.
Rxd8 {[%clk 0:00:19.7]} 44... Qxd8 {[%clk 0:00:06.8]} 45. d7 {[%clk 0:00:19.6]}
45... Bb8 {[%clk 0:00:06.9]} 46. Qd3+ {[%clk 0:00:19.9]} 46... g6 {[%clk
0:00:06.8]} 47. Rc1 {[%clk 0:00:19.9]} 47... Qxd7 {[%clk 0:00:05.5]} 48. Qxd7
{[%clk 0:00:18.8]} 48... Nxd7 {[%clk 0:00:06.4]} 49. Rd1 {[%clk 0:00:17.7]}
49... Ne5 {[%clk 0:00:05.3]} 50. Rd8 {[%clk 0:00:17.4]} 50... Nc6 {[%clk
0:00:05.5]} 51. Rc8 {[%clk 0:00:16.4]} 1-0

[Event "*** Titled Tuesday Blitz"]
[Site "Chess.com"]
[Date "2021.02.16"]
[Round "8"]
[White "Grineva_Marianna"]
[Black "TeukkaSalama"]
[Result "0-1"]
[WhiteElo "2232"]
[BlackElo "2373"]
[TimeControl "180+1"]
[EndTime "11:30:17 PST"]
[Termination "TeukkaSalama won by resignation"]

1. e4 {[%clk 0:03:00.9]} 1... d6 {[%clk 0:02:59.9]} 2. d4 {[%clk 0:03:00]} 2...
Nf6 {[%clk 0:03:00.4]} 3. Nc3 {[%clk 0:02:59.9]} 3... e5 {[%clk 0:03:00.8]} 4.
Nf3 {[%clk 0:02:58.1]} 4... exd4 {[%clk 0:03:01.2]} 5. Nxd4 {[%clk 0:02:57.3]}
5... Be7 {[%clk 0:03:01.6]} 6. Be2 {[%clk 0:02:54.7]} 6... O-O {[%clk 0:03:02]}
7. Be3 {[%clk 0:02:55]} 7... Re8 {[%clk 0:03:01.1]} 8. O-O {[%clk 0:02:52.4]}
8... Rf8 {[%clk 0:03:00.9]} 9. f4 {[%clk 0:02:48.7]} 9... Re8 {[%clk 0:03:01]}
10. Bf3 {[%clk 0:02:49.1]} 10... Bf8 {[%clk 0:03:01.1]} 11. Qd3 {[%clk
0:02:47.1]} 11... Nbd7 {[%clk 0:02:59.9]} 12. b4 {[%clk 0:02:44.5]} 12... a5
{[%clk 0:02:56.5]} 13. a3 {[%clk 0:02:44.1]} 13... c6 {[%clk 0:02:51.4]} 14. Nf5
{[%clk 0:02:38.3]} 14... Qc7 {[%clk 0:02:45.8]} 15. Rad1 {[%clk 0:02:35.6]}
15... axb4 {[%clk 0:02:34.5]} 16. axb4 {[%clk 0:02:34.7]} 16... Ra3 {[%clk
0:02:28.5]} 17. Bc1 {[%clk 0:02:30.3]} 17... Qb6+ {[%clk 0:01:10.4]} 18. Kh1
{[%clk 0:02:29.3]} 18... Qxb4 {[%clk 0:00:52.3]} 19. Bxa3 {[%clk 0:02:28.4]}
19... Qxa3 {[%clk 0:00:53.2]} 20. Rfe1 {[%clk 0:02:17.7]} 20... Nc5 {[%clk
0:00:50.9]} 21. Qe3 {[%clk 0:02:06.8]} 21... Bxf5 {[%clk 0:00:49.1]} 22. Nd5
{[%clk 0:01:35.5]} 22... Qxe3 {[%clk 0:00:42.3]} 23. Nxf6+ {[%clk 0:01:35.5]}
23... gxf6 {[%clk 0:00:43.2]} 24. Rxe3 {[%clk 0:01:34.1]} 24... Bxe4 {[%clk
0:00:41.5]} 25. Rde1 {[%clk 0:01:22.8]} 25... f5 {[%clk 0:00:40.1]} 26. Bh5
{[%clk 0:01:20.5]} 26... Bg7 {[%clk 0:00:34.8]} 27. h3 {[%clk 0:01:16.6]} 27...
d5 {[%clk 0:00:32.9]} 28. Kh2 {[%clk 0:01:15.8]} 28... Ne6 {[%clk 0:00:30.4]}
29. Rg3 {[%clk 0:01:14.8]} 29... Kf8 {[%clk 0:00:28.1]} 30. Rb1 {[%clk
0:01:12.7]} 30... Rb8 {[%clk 0:00:24]} 31. Rb2 {[%clk 0:01:05.3]} 31... Nxf4
{[%clk 0:00:23.6]} 32. Bf3 {[%clk 0:01:04.1]} 32... Bxf3 {[%clk 0:00:23.3]} 33.
Rxf3 {[%clk 0:01:05]} 33... Ne6 {[%clk 0:00:22.8]} 34. Ra2 {[%clk 0:01:01.8]}
34... Be5+ {[%clk 0:00:22.1]} 35. g3 {[%clk 0:01:00.6]} 35... Ke7 {[%clk
0:00:21]} 36. Rxf5 {[%clk 0:00:59.9]} 36... f6 {[%clk 0:00:21.6]} 37. Rh5 {[%clk
0:00:59.4]} 37... Kd6 {[%clk 0:00:21.6]} 38. Rxh7 {[%clk 0:00:59.1]} 38... Rg8
{[%clk 0:00:21.9]} 39. Ra3 {[%clk 0:00:57.7]} 39... b5 {[%clk 0:00:21.7]} 40. h4
{[%clk 0:00:55.1]} 40... Rg4 {[%clk 0:00:20.2]} 41. Kh3 {[%clk 0:00:55.2]} 41...
Rc4 {[%clk 0:00:20.2]} 42. h5 {[%clk 0:00:49.9]} 42... Rxc2 {[%clk 0:00:20]} 43.
Rh8 {[%clk 0:00:47.9]} 43... f5 {[%clk 0:00:19.3]} 44. h6 {[%clk 0:00:45.8]}
44... Bxh8 {[%clk 0:00:16]} 45. h7 {[%clk 0:00:45.1]} 45... Be5 {[%clk
0:00:16.1]} 46. Ra8 {[%clk 0:00:43.3]} 46... Ng5+ {[%clk 0:00:14.6]} 47. Kh4
{[%clk 0:00:41.9]} 47... Ne4 {[%clk 0:00:15.1]} 48. Kh5 {[%clk 0:00:39.1]} 48...
Rh2+ {[%clk 0:00:14.3]} 49. Kg6 {[%clk 0:00:39.4]} 49... b4 {[%clk 0:00:13.4]}
50. Kxf5 {[%clk 0:00:38.3]} 50... Bd4 {[%clk 0:00:13]} 51. Rb8 {[%clk 0:00:32]}
51... Rxh7 {[%clk 0:00:12.6]} 52. Rxb4 {[%clk 0:00:31.7]} 52... Kc5 {[%clk
0:00:12.8]} 53. Rb8 {[%clk 0:00:31.9]} 53... Nxg3+ {[%clk 0:00:12.9]} 54. Kg6
{[%clk 0:00:30.7]} 54... Re7 {[%clk 0:00:12.9]} 55. Kh6 {[%clk 0:00:31.2]} 55...
Ne4 {[%clk 0:00:13]} 56. Kg6 {[%clk 0:00:30.8]} 56... Re5 {[%clk 0:00:13.9]} 57.
Rb1 {[%clk 0:00:29]} 57... Nd6 {[%clk 0:00:14.6]} 58. Rc1+ {[%clk 0:00:28.5]}
58... Nc4 {[%clk 0:00:15.5]} 59. Rd1 {[%clk 0:00:25.4]} 59... Re4 {[%clk
0:00:15.3]} 60. Kf5 {[%clk 0:00:24.8]} 60... Ne3+ {[%clk 0:00:14.6]} 0-1